[Event "Titled Tuesday Blitz February 15 Late 2022"]
[White "Toncheva, Nadya"]
[Black "Slugin, Sergey"]
[WhiteFideId "2924056"]
[BlackFideId "4122569"]
[WhiteElo "1920"]
[BlackElo "2358"]
[Result "0-1"]
[Round "05"]
[TimeControl "180+1"]
[Date "2022.02.16"]
[WhiteClock "0:00:04"]
[BlackClock "0:00:19"]

1. e4 {[%clk 0:03:00]}  c5 {[%clk 0:02:55]} 2. Nf3 {[%clk 0:03:00]}  e6 {[%clk 0:02:55]} 3. d4 {[%clk 0:03:00]}  cxd4 {[%clk 0:02:56]} 4. Nxd4 {[%clk 0:03:01]}  Nc6 {[%clk 0:02:56]} 5. Nc3 {[%clk 0:03:00]}  Qc7 {[%clk 0:02:56]} 6. f4 {[%clk 0:03:00]}  a6 {[%clk 0:02:53]} 7. Nxc6 {[%clk 0:03:00]}  bxc6 {[%clk 0:02:46]} 8. Bd3 {[%clk 0:03:00]}  d5 {[%clk 0:02:46]} 9. O-O {[%clk 0:03:00]}  Nf6 {[%clk 0:02:47]} 10. Qf3 {[%clk 0:02:56]}  Bc5+ {[%clk 0:02:41]} 11. Kh1 {[%clk 0:02:50]}  O-O {[%clk 0:02:41]} 12. Bd2 {[%clk 0:02:48]}  Bb7 {[%clk 0:02:40]} 13. Qh3 {[%clk 0:02:45]}  g6 {[%clk 0:02:32]} 14. Rae1 {[%clk 0:02:25]}  Rfe8 {[%clk 0:02:15]} 15. e5 {[%clk 0:02:06]}  Nd7 {[%clk 0:02:14]} 16. Rf3 {[%clk 0:02:06]}  Bf8 {[%clk 0:02:12]} 17. Rg3 {[%clk 0:02:02]}  c5 {[%clk 0:02:04]} 18. f5 {[%clk 0:01:58]}  exf5 {[%clk 0:01:57]} 19. Bf4 {[%clk 0:01:42]}  d4 {[%clk 0:01:50]} 20. Bxf5 {[%clk 0:01:18]}  Nxe5 {[%clk 0:01:37]} 21. Ne4 {[%clk 0:01:11]}  Bg7 {[%clk 0:01:21]} 22. Bh6 {[%clk 0:00:53]}  Bxe4 {[%clk 0:01:09]} 23. Bxe4 {[%clk 0:00:42]}  Nc6 {[%clk 0:01:03]} 24. Bd2 {[%clk 0:00:22]}  Re6 {[%clk 0:00:54]} 25. Bd5 {[%clk 0:00:19]}  Rxe1+ {[%clk 0:00:52]} 26. Bxe1 {[%clk 0:00:20]}  Qe5 {[%clk 0:00:50]} 27. Bxf7+ {[%clk 0:00:12]}  Kxf7 {[%clk 0:00:50]} 28. Rf3+ {[%clk 0:00:10]}  Kg8 {[%clk 0:00:50]} 29. Bf2 {[%clk 0:00:09]}  Re8 {[%clk 0:00:49]} 30. Qd7 {[%clk 0:00:09]}  Qe1+ {[%clk 0:00:49]} 31. Bg1 {[%clk 0:00:09]}  Qe6 {[%clk 0:00:45]} 32. Qb7 {[%clk 0:00:08]}  Ne5 {[%clk 0:00:42]} 33. Rf1 {[%clk 0:00:08]}  Ng4 {[%clk 0:00:40]} 34. h3 {[%clk 0:00:06]}  Ne3 {[%clk 0:00:40]} 35. Re1 {[%clk 0:00:06]}  Qxa2 {[%clk 0:00:36]} 36. c3 {[%clk 0:00:04]}  Qf7 {[%clk 0:00:31]} 37. Qc6 {[%clk 0:00:03]}  Qe6 {[%clk 0:00:22]} 38. Qb7 {[%clk 0:00:03]}  h6 {[%clk 0:00:21]} 39. cxd4 {[%clk 0:00:03]}  cxd4 {[%clk 0:00:21]} 40. Qf3 {[%clk 0:00:03]}  Qe4 {[%clk 0:00:21]} 41. Qg3 {[%clk 0:00:02]}  h5 {[%clk 0:00:20]} 42. h4 {[%clk 0:00:03]}  Kh7 {[%clk 0:00:20]} 43. Bf2 {[%clk 0:00:03]}  Bf6 {[%clk 0:00:20]} 44. Kh2 {[%clk 0:00:03]}  Bxh4 {[%clk 0:00:19]} 45. Qxh4 {[%clk 0:00:04]}  Qxg2# {[%clk 0:00:19]} 0-1


[Site "https://www.chess.com"]

[Event "Titled Tuesday Blitz February 15 Late 2022"]
[White "Tregubov, Pavel V."]
[Black "Wagner, Dennis"]
[WhiteFideId "4115341"]
[BlackFideId "24650684"]
[WhiteElo "2341"]
[BlackElo "2355"]
[Result "0-1"]
[Round "05"]
[TimeControl "180+1"]
[Date "2022.02.15"]
[WhiteClock "0:00:34"]
[BlackClock "0:00:30"]

1. e4 {[%clk 0:02:55]}  e5 {[%clk 0:02:59]} 2. Nf3 {[%clk 0:02:55]}  Nc6 {[%clk 0:03:00]} 3. Bb5 {[%clk 0:02:56]}  a6 {[%clk 0:03:00]} 4. Ba4 {[%clk 0:02:56]}  Nf6 {[%clk 0:03:01]} 5. d4 {[%clk 0:02:57]}  exd4 {[%clk 0:03:00]} 6. O-O {[%clk 0:02:56]}  Be7 {[%clk 0:03:01]} 7. e5 {[%clk 0:02:56]}  Ne4 {[%clk 0:03:01]} 8. Nxd4 {[%clk 0:02:57]}  O-O {[%clk 0:03:00]} 9. Nf5 {[%clk 0:02:52]}  d5 {[%clk 0:03:00]} 10. Nxe7+ {[%clk 0:02:51]}  Nxe7 {[%clk 0:02:54]} 11. c3 {[%clk 0:02:51]}  Ng6 {[%clk 0:02:46]} 12. f4 {[%clk 0:02:37]}  c6 {[%clk 0:02:45]} 13. Be3 {[%clk 0:02:34]}  f6 {[%clk 0:02:43]} 14. exf6 {[%clk 0:02:18]}  Qxf6 {[%clk 0:02:43]} 15. Nd2 {[%clk 0:02:15]}  Bf5 {[%clk 0:02:43]} 16. Bc2 {[%clk 0:02:03]}  Rae8 {[%clk 0:02:33]} 17. Bd4 {[%clk 0:01:59]}  Qf7 {[%clk 0:02:33]} 18. Bxe4 {[%clk 0:01:49]}  dxe4 {[%clk 0:02:04]} 19. Qe2 {[%clk 0:01:28]}  e3 {[%clk 0:01:37]} 20. Nc4 {[%clk 0:01:26]}  Bg4 {[%clk 0:00:48]} 21. Qxg4 {[%clk 0:01:19]}  Qxc4 {[%clk 0:00:48]} 22. f5 {[%clk 0:01:06]}  e2 {[%clk 0:00:47]} 23. Rfe1 {[%clk 0:01:02]}  Ne5 {[%clk 0:00:39]} 24. Qxe2 {[%clk 0:00:54]}  Qxe2 {[%clk 0:00:39]} 25. Rxe2 {[%clk 0:00:55]}  Nf3+ {[%clk 0:00:39]} 26. Kf2 {[%clk 0:00:52]}  Rxe2+ {[%clk 0:00:38]} 27. Kxe2 {[%clk 0:00:51]}  Nxd4+ {[%clk 0:00:39]} 28. cxd4 {[%clk 0:00:51]}  Rxf5 {[%clk 0:00:40]} 29. Rc1 {[%clk 0:00:45]}  Rb5 {[%clk 0:00:39]} 30. b3 {[%clk 0:00:44]}  Kf7 {[%clk 0:00:33]} 31. Ke3 {[%clk 0:00:41]}  Ke6 {[%clk 0:00:32]} 32. Rc5 {[%clk 0:00:37]}  Rxc5 {[%clk 0:00:32]} 33. dxc5 {[%clk 0:00:37]}  Kd5 {[%clk 0:00:32]} 34. b4 {[%clk 0:00:34]}  a5 {[%clk 0:00:30]} 0-1


[Site "https://www.chess.com"]

[Event "Titled Tuesday Blitz February 15 Late 2022"]
[White "Vidit, Santosh Gujrathi"]
[Black "Svane, Frederik"]
[WhiteFideId "5029465"]
[BlackFideId "12923044"]
[WhiteElo "2654"]
[BlackElo "2459"]
[Result "1-0"]
[Round "05"]
[TimeControl "180+1"]
[Date "2022.02.15"]
[WhiteClock "0:01:31"]
[BlackClock "0:00:02"]

1. Nf3 {[%clk 0:03:00]}  Nf6 {[%clk 0:02:54]} 2. g3 {[%clk 0:03:01]}  g6 {[%clk 0:02:48]} 3. Bg2 {[%clk 0:03:01]}  Bg7 {[%clk 0:02:49]} 4. d4 {[%clk 0:03:01]}  O-O {[%clk 0:02:48]} 5. c4 {[%clk 0:03:00]}  c6 {[%clk 0:02:45]} 6. O-O {[%clk 0:03:00]}  d5 {[%clk 0:02:46]} 7. Qb3 {[%clk 0:03:00]}  a5 {[%clk 0:02:43]} 8. Rd1 {[%clk 0:02:59]}  a4 {[%clk 0:02:41]} 9. Qb4 {[%clk 0:02:59]}  dxc4 {[%clk 0:02:37]} 10. Qxc4 {[%clk 0:03:00]}  Be6 {[%clk 0:02:25]} 11. Qb4 {[%clk 0:02:49]}  Qc7 {[%clk 0:02:12]} 12. Bf4 {[%clk 0:02:48]}  Nd5 {[%clk 0:02:06]} 13. Bxc7 {[%clk 0:02:37]}  Nxb4 {[%clk 0:02:06]} 14. Nc3 {[%clk 0:02:38]}  Nd5 {[%clk 0:01:43]} 15. Nxd5 {[%clk 0:02:25]}  Bxd5 {[%clk 0:01:38]} 16. a3 {[%clk 0:02:25]}  Rc8 {[%clk 0:01:29]} 17. Bf4 {[%clk 0:02:17]}  Nd7 {[%clk 0:01:29]} 18. Rac1 {[%clk 0:02:11]}  Ra5 {[%clk 0:01:20]} 19. Bd2 {[%clk 0:02:03]}  Rb5 {[%clk 0:00:30]} 20. Bb4 {[%clk 0:02:03]}  e6 {[%clk 0:00:20]} 21. Re1 {[%clk 0:01:50]}  Bxf3 {[%clk 0:00:17]} 22. Bxf3 {[%clk 0:01:50]}  Bxd4 {[%clk 0:00:15]} 23. Red1 {[%clk 0:01:50]}  Bxb2 {[%clk 0:00:06]} 24. Rc2 {[%clk 0:01:49]}  Ne5 {[%clk 0:00:03]} 25. Rxb2 {[%clk 0:01:47]}  Nxf3+ {[%clk 0:00:03]} 26. exf3 {[%clk 0:01:47]}  c5 {[%clk 0:00:03]} 27. Rc2 {[%clk 0:01:36]}  Rc6 {[%clk 0:00:02]} 28. Bc3 {[%clk 0:01:33]}  Kf8 {[%clk 0:00:01]} 29. Bf6 {[%clk 0:01:31]}  Rc8 {[%clk 0:00:02]} 30. Rcd2 {[%clk 0:01:31]} 1-0


[Site "https://www.chess.com"]

[Event "Titled Tuesday Blitz February 15 Late 2022"]
[White "Vovk, Orest"]
[Black "Sailer, Mike"]
[WhiteFideId "14113490"]
[BlackFideId "2012901"]
[WhiteElo "2203"]
[BlackElo "2109"]
[Result "1-0"]
[Round "05"]
[TimeControl "180+1"]
[Date "2022.02.16"]
[WhiteClock "0:01:12"]
[BlackClock "0:00:01"]

1. h4 {[%clk 0:03:00]}  b6 {[%clk 0:02:54]} 2. h5 {[%clk 0:03:01]}  Bb7 {[%clk 0:02:53]} 3. d3 {[%clk 0:03:01]}  h6 {[%clk 0:02:51]} 4. Nc3 {[%clk 0:03:01]}  Nf6 {[%clk 0:02:49]} 5. e4 {[%clk 0:03:00]}  e5 {[%clk 0:02:46]} 6. f4 {[%clk 0:03:01]}  Nc6 {[%clk 0:02:25]} 7. g4 {[%clk 0:02:54]}  d5 {[%clk 0:02:02]} 8. g5 {[%clk 0:02:48]}  hxg5 {[%clk 0:01:54]} 9. fxg5 {[%clk 0:02:49]}  d4 {[%clk 0:01:36]} 10. gxf6 {[%clk 0:02:49]}  dxc3 {[%clk 0:01:35]} 11. fxg7 {[%clk 0:02:48]}  Bxg7 {[%clk 0:01:34]} 12. bxc3 {[%clk 0:02:45]}  Bh6 {[%clk 0:01:21]} 13. Bxh6 {[%clk 0:02:41]}  Rxh6 {[%clk 0:01:14]} 14. Qg4 {[%clk 0:02:41]}  Ne7 {[%clk 0:01:00]} 15. Qg7 {[%clk 0:02:29]}  Qd6 {[%clk 0:00:50]} 16. Bh3 {[%clk 0:02:16]}  Bc8 {[%clk 0:00:35]} 17. Bxc8 {[%clk 0:02:11]}  Rxc8 {[%clk 0:00:33]} 18. Ne2 {[%clk 0:02:01]}  Kd7 {[%clk 0:00:27]} 19. Qg4+ {[%clk 0:01:49]}  Kc6 {[%clk 0:00:27]} 20. Kd2 {[%clk 0:01:48]}  Rg8 {[%clk 0:00:26]} 21. Qf3 {[%clk 0:01:44]}  Qe6 {[%clk 0:00:13]} 22. a4 {[%clk 0:01:40]}  Kb7 {[%clk 0:00:11]} 23. a5 {[%clk 0:01:40]}  Rf6 {[%clk 0:00:10]} 24. a6+ {[%clk 0:01:36]}  Kb8 {[%clk 0:00:09]} 25. Qe3 {[%clk 0:01:36]}  Rh6 {[%clk 0:00:04]} 26. Rab1 {[%clk 0:01:27]}  Rg2 {[%clk 0:00:04]} 27. Qf3 {[%clk 0:01:19]}  Qg4 {[%clk 0:00:02]} 28. Qxg4 {[%clk 0:01:15]}  Rxg4 {[%clk 0:00:03]} 29. Rbf1 {[%clk 0:01:15]}  f6 {[%clk 0:00:02]} 30. Rfg1 {[%clk 0:01:13]}  Rxg1 {[%clk 0:00:02]} 31. Rxg1 {[%clk 0:01:11]}  Rxh5 {[%clk 0:00:01]} 32. Rg7 {[%clk 0:01:12]} 1-0


[Site "https://www.chess.com"]

[Event "Titled Tuesday Blitz February 15 Late 2022"]
[White "Vusatiuk, Vladimir"]
[Black "Kavyev, Ruslan"]
[WhiteFideId "14118610"]
[BlackFideId "34110981"]
[WhiteElo "2157"]
[BlackElo "2182"]
[Result "1-0"]
[Round "05"]
[TimeControl "180+1"]
[Date "2022.02.15"]
[WhiteClock "0:00:32"]
[BlackClock "0:01:31"]

1. b4 {[%clk 0:02:55]}  Nf6 {[%clk 0:02:47]} 2. Bb2 {[%clk 0:02:55]}  d5 {[%clk 0:02:44]} 3. Nf3 {[%clk 0:02:52]}  g6 {[%clk 0:02:38]} 4. e3 {[%clk 0:02:52]}  Bg7 {[%clk 0:02:38]} 5. c4 {[%clk 0:02:52]}  O-O {[%clk 0:02:39]} 6. cxd5 {[%clk 0:02:49]}  Qxd5 {[%clk 0:02:37]} 7. Nc3 {[%clk 0:02:45]}  Qd8 {[%clk 0:02:36]} 8. d4 {[%clk 0:02:37]}  a5 {[%clk 0:02:34]} 9. b5 {[%clk 0:02:34]}  b6 {[%clk 0:02:33]} 10. Be2 {[%clk 0:02:29]}  Bb7 {[%clk 0:02:34]} 11. O-O {[%clk 0:02:29]}  Nbd7 {[%clk 0:02:33]} 12. Rc1 {[%clk 0:02:25]}  Re8 {[%clk 0:02:33]} 13. Qc2 {[%clk 0:01:33]}  e5 {[%clk 0:02:21]} 14. dxe5 {[%clk 0:01:33]}  Nxe5 {[%clk 0:02:21]} 15. Rfd1 {[%clk 0:01:34]}  Qe7 {[%clk 0:02:18]} 16. Nxe5 {[%clk 0:01:26]}  Qxe5 {[%clk 0:02:19]} 17. Nd5 {[%clk 0:01:27]}  Qg5 {[%clk 0:02:19]} 18. f4 {[%clk 0:01:20]}  Qh4 {[%clk 0:02:08]} 19. Bxf6 {[%clk 0:00:51]}  Bxf6 {[%clk 0:02:08]} 20. g3 {[%clk 0:00:52]}  Qh3 {[%clk 0:01:45]} 21. Nxf6+ {[%clk 0:00:51]}  Kh8 {[%clk 0:01:40]} 22. Bg4 {[%clk 0:00:48]}  Qh6 {[%clk 0:01:34]} 23. Nxe8 {[%clk 0:00:38]}  Rxe8 {[%clk 0:01:34]} 24. Qxc7 {[%clk 0:00:37]}  Be4 {[%clk 0:01:32]} 25. Rd8 {[%clk 0:00:36]}  Qf8 {[%clk 0:01:30]} 26. Rxe8 {[%clk 0:00:32]}  Qxe8 {[%clk 0:01:31]} 27. Qc8 {[%clk 0:00:32]} 1-0


[Site "https://www.chess.com"]

[Event "Titled Tuesday Blitz February 15 Late 2022"]
[White "Wu, Christopher"]
[Black "Villegas, Pierre"]
[WhiteFideId "2040875"]
[BlackFideId "654183"]
[WhiteElo "2665"]
[BlackElo "2410"]
[Result "1-0"]
[Round "05"]
[TimeControl "180+1"]
[Date "2022.02.16"]
[WhiteClock "0:00:23"]
[BlackClock "0:00:01"]

1. d4 {[%clk 0:02:59]}  d5 {[%clk 0:02:57]} 2. c4 {[%clk 0:02:57]}  e6 {[%clk 0:02:57]} 3. Nf3 {[%clk 0:02:57]}  a6 {[%clk 0:02:57]} 4. g3 {[%clk 0:02:49]}  dxc4 {[%clk 0:02:54]} 5. a4 {[%clk 0:02:49]}  Nc6 {[%clk 0:02:53]} 6. Bg2 {[%clk 0:02:46]}  Nf6 {[%clk 0:02:48]} 7. O-O {[%clk 0:02:46]}  Na5 {[%clk 0:02:42]} 8. Nbd2 {[%clk 0:02:40]}  c5 {[%clk 0:02:40]} 9. Qc2 {[%clk 0:02:37]}  cxd4 {[%clk 0:02:36]} 10. Nxc4 {[%clk 0:02:37]}  Be7 {[%clk 0:02:23]} 11. Nxa5 {[%clk 0:02:27]}  Qxa5 {[%clk 0:02:24]} 12. Nxd4 {[%clk 0:02:27]}  O-O {[%clk 0:02:23]} 13. Bd2 {[%clk 0:02:23]}  Qh5 {[%clk 0:02:21]} 14. Nf3 {[%clk 0:02:02]}  Bd7 {[%clk 0:02:04]} 15. Rfd1 {[%clk 0:02:01]}  Rac8 {[%clk 0:01:54]} 16. Qb3 {[%clk 0:02:00]}  Bc6 {[%clk 0:01:53]} 17. Rac1 {[%clk 0:01:54]}  Ng4 {[%clk 0:01:31]} 18. h3 {[%clk 0:01:53]}  Nf6 {[%clk 0:01:32]} 19. Be3 {[%clk 0:01:40]}  Rfd8 {[%clk 0:01:23]} 20. Bb6 {[%clk 0:01:35]}  Rxd1+ {[%clk 0:01:11]} 21. Rxd1 {[%clk 0:01:36]}  Bd5 {[%clk 0:00:55]} 22. Qe3 {[%clk 0:01:30]}  Qg6 {[%clk 0:00:49]} 23. Rc1 {[%clk 0:01:18]}  Rxc1+ {[%clk 0:00:44]} 24. Qxc1 {[%clk 0:01:19]}  h6 {[%clk 0:00:44]} 25. Bd4 {[%clk 0:01:10]}  Qe4 {[%clk 0:00:44]} 26. Qc7 {[%clk 0:01:05]}  Bf8 {[%clk 0:00:37]} 27. e3 {[%clk 0:00:44]}  Bc6 {[%clk 0:00:32]} 28. Kh2 {[%clk 0:00:40]}  Nd5 {[%clk 0:00:30]} 29. Qd8 {[%clk 0:00:33]}  Nf6 {[%clk 0:00:01]} 30. Nh4 {[%clk 0:00:23]} 1-0


[Site "https://www.chess.com"]

[Event "Titled Tuesday Blitz February 15 Late 2022"]
[White "Xiong, Jeffery"]
[Black "Svane, Rasmus"]
[WhiteFideId "2047640"]
[BlackFideId "4657101"]
[WhiteElo "2727"]
[BlackElo "2645"]
[Result "1/2-1/2"]
[Round "05"]
[TimeControl "180+1"]
[Date "2022.02.15"]
[WhiteClock "0:01:24"]
[BlackClock "0:00:28"]

1. Nf3 {[%clk 0:02:56]}  d5 {[%clk 0:02:59]} 2. g3 {[%clk 0:02:56]}  e6 {[%clk 0:03:00]} 3. Bg2 {[%clk 0:02:56]}  Nf6 {[%clk 0:03:01]} 4. O-O {[%clk 0:02:55]}  Be7 {[%clk 0:03:01]} 5. d4 {[%clk 0:02:55]}  O-O {[%clk 0:03:01]} 6. c4 {[%clk 0:02:55]}  dxc4 {[%clk 0:03:02]} 7. Qc2 {[%clk 0:02:55]}  a6 {[%clk 0:03:02]} 8. a4 {[%clk 0:02:56]}  Bd7 {[%clk 0:03:02]} 9. Qxc4 {[%clk 0:02:56]}  Bc6 {[%clk 0:03:03]} 10. Bg5 {[%clk 0:02:56]}  Nbd7 {[%clk 0:03:02]} 11. Nc3 {[%clk 0:02:56]}  h6 {[%clk 0:03:01]} 12. Bxf6 {[%clk 0:02:56]}  Nxf6 {[%clk 0:03:02]} 13. b4 {[%clk 0:02:56]}  Bd5 {[%clk 0:03:03]} 14. Nxd5 {[%clk 0:02:57]}  exd5 {[%clk 0:03:03]} 15. Qb3 {[%clk 0:02:57]}  c6 {[%clk 0:03:04]} 16. Rfd1 {[%clk 0:02:56]}  Bd6 {[%clk 0:03:03]} 17. Ne1 {[%clk 0:02:52]}  h5 {[%clk 0:03:02]} 18. Nd3 {[%clk 0:02:39]}  g6 {[%clk 0:03:01]} 19. b5 {[%clk 0:02:35]}  axb5 {[%clk 0:03:00]} 20. axb5 {[%clk 0:02:36]}  Rxa1 {[%clk 0:02:56]} 21. Rxa1 {[%clk 0:02:37]}  Qb6 {[%clk 0:02:56]} 22. e3 {[%clk 0:02:38]}  Rd8 {[%clk 0:02:30]} 23. Rb1 {[%clk 0:02:37]}  Kg7 {[%clk 0:01:56]} 24. Bf3 {[%clk 0:02:37]}  Rc8 {[%clk 0:01:51]} 25. Kg2 {[%clk 0:02:36]}  Ra8 {[%clk 0:01:38]} 26. h3 {[%clk 0:02:20]}  Ra3 {[%clk 0:01:25]} 27. Qc2 {[%clk 0:02:19]}  cxb5 {[%clk 0:01:26]} 28. Nb4 {[%clk 0:02:12]}  Bxb4 {[%clk 0:01:18]} 29. Rxb4 {[%clk 0:02:13]}  Qc6 {[%clk 0:01:12]} 30. Qb2 {[%clk 0:02:12]}  Ra5 {[%clk 0:00:46]} 31. Be2 {[%clk 0:02:12]}  Ne4 {[%clk 0:00:46]} 32. Bxb5 {[%clk 0:01:59]}  Qc3 {[%clk 0:00:42]} 33. Qxc3 {[%clk 0:01:51]}  Nxc3 {[%clk 0:00:42]} 34. Bd3 {[%clk 0:01:52]}  Ra2 {[%clk 0:00:27]} 35. Kf3 {[%clk 0:01:22]}  Nd1 {[%clk 0:00:27]} 36. Be2 {[%clk 0:01:23]}  Nc3 {[%clk 0:00:27]} 37. Bd3 {[%clk 0:01:23]}  Nd1 {[%clk 0:00:28]} 38. Be2 {[%clk 0:01:24]}  Nc3 {[%clk 0:00:28]} 39. Bd3 {[%clk 0:01:24]} 1/2-1/2


[Site "https://www.chess.com"]

[Event "Titled Tuesday Blitz February 15 Late 2022"]
[White "Yushko, Olga"]
[Black "Sanchez, Robert"]
[WhiteFideId "14114500"]
[BlackFideId "2034360"]
[WhiteElo "2028"]
[BlackElo "2305"]
[Result "1-0"]
[Round "05"]
[TimeControl "180+1"]
[Date "2022.02.16"]
[WhiteClock "0:01:02"]
[BlackClock "0:00:09"]

1. d4 {[%clk 0:02:57]}  d5 {[%clk 0:02:59]} 2. c4 {[%clk 0:02:57]}  c6 {[%clk 0:02:59]} 3. cxd5 {[%clk 0:02:57]}  cxd5 {[%clk 0:02:59]} 4. Nc3 {[%clk 0:02:58]}  Nf6 {[%clk 0:02:59]} 5. Nf3 {[%clk 0:02:58]}  Nc6 {[%clk 0:03:00]} 6. Bf4 {[%clk 0:02:59]}  e6 {[%clk 0:02:59]} 7. e3 {[%clk 0:02:59]}  Nh5 {[%clk 0:02:59]} 8. Bg5 {[%clk 0:02:58]}  f6 {[%clk 0:02:55]} 9. Bh4 {[%clk 0:02:58]}  g6 {[%clk 0:02:54]} 10. Be2 {[%clk 0:02:57]}  Ng7 {[%clk 0:02:53]} 11. O-O {[%clk 0:02:57]}  Nf5 {[%clk 0:02:53]} 12. Bg3 {[%clk 0:02:56]}  Nxg3 {[%clk 0:02:53]} 13. hxg3 {[%clk 0:02:57]}  Bd6 {[%clk 0:02:48]} 14. a3 {[%clk 0:02:55]}  O-O {[%clk 0:02:48]} 15. b4 {[%clk 0:02:55]}  a6 {[%clk 0:02:45]} 16. Rc1 {[%clk 0:02:53]}  Bd7 {[%clk 0:02:44]} 17. Qb3 {[%clk 0:02:47]}  Ne7 {[%clk 0:02:38]} 18. Na4 {[%clk 0:02:42]}  Nc8 {[%clk 0:02:24]} 19. Nc5 {[%clk 0:02:40]}  Bxc5 {[%clk 0:02:22]} 20. bxc5 {[%clk 0:02:39]}  Bc6 {[%clk 0:02:20]} 21. Ne1 {[%clk 0:02:34]}  e5 {[%clk 0:02:19]} 22. Nd3 {[%clk 0:02:33]}  e4 {[%clk 0:02:17]} 23. Nb4 {[%clk 0:02:33]}  Ne7 {[%clk 0:02:06]} 24. Rb1 {[%clk 0:02:27]}  Rb8 {[%clk 0:02:00]} 25. Nxc6 {[%clk 0:02:21]}  Nxc6 {[%clk 0:02:00]} 26. Qa4 {[%clk 0:02:16]}  Qd7 {[%clk 0:01:54]} 27. Rb6 {[%clk 0:02:11]}  Rfc8 {[%clk 0:01:51]} 28. Rfb1 {[%clk 0:02:08]}  Qc7 {[%clk 0:01:36]} 29. Qb3 {[%clk 0:02:02]}  Qd8 {[%clk 0:01:30]} 30. Kh2 {[%clk 0:01:38]}  Qf8 {[%clk 0:00:41]} 31. Qxd5+ {[%clk 0:01:36]}  Kh8 {[%clk 0:00:42]} 32. Qxe4 {[%clk 0:01:32]}  Re8 {[%clk 0:00:42]} 33. Qf4 {[%clk 0:01:28]}  g5 {[%clk 0:00:40]} 34. Qg4 {[%clk 0:01:26]}  Qh6+ {[%clk 0:00:26]} 35. Kg1 {[%clk 0:01:21]}  Qg6 {[%clk 0:00:24]} 36. Bf3 {[%clk 0:01:17]}  f5 {[%clk 0:00:16]} 37. Qh5 {[%clk 0:01:16]}  Qxh5 {[%clk 0:00:14]} 38. Bxh5 {[%clk 0:01:16]}  Rec8 {[%clk 0:00:12]} 39. Bf3 {[%clk 0:01:16]}  Na5 {[%clk 0:00:10]} 40. R1b4 {[%clk 0:01:13]}  Rc7 {[%clk 0:00:08]} 41. Ra4 {[%clk 0:01:11]}  Nc6 {[%clk 0:00:08]} 42. Bxc6 {[%clk 0:01:04]}  Rxc6 {[%clk 0:00:08]} 43. Rxc6 {[%clk 0:01:02]}  bxc6 {[%clk 0:00:09]} 1-0


[Site "https://www.chess.com"]

[Event "Titled Tuesday Blitz February 15 Late 2022"]
[White "volunteers1998"]
[Black "Jarocka, Liwia"]
[BlackFideId "21807558"]
[WhiteElo "2267"]
[BlackElo "1896"]
[Result "0-1"]
[Round "05"]
[TimeControl "180+1"]
[Date "2022.02.16"]
[WhiteClock "0:00:02"]
[BlackClock "0:00:38"]

1. e4 {[%clk 0:02:55]}  c5 {[%clk 0:02:51]} 2. Nf3 {[%clk 0:02:55]}  d6 {[%clk 0:02:51]} 3. d4 {[%clk 0:02:53]}  cxd4 {[%clk 0:02:52]} 4. Nxd4 {[%clk 0:02:53]}  Nf6 {[%clk 0:02:52]} 5. Nc3 {[%clk 0:02:48]}  a6 {[%clk 0:02:52]} 6. h3 {[%clk 0:02:48]}  e5 {[%clk 0:02:50]} 7. Nde2 {[%clk 0:02:47]}  h5 {[%clk 0:02:50]} 8. Bg5 {[%clk 0:02:43]}  Be7 {[%clk 0:02:51]} 9. g3 {[%clk 0:02:40]}  Nc6 {[%clk 0:02:50]} 10. Bg2 {[%clk 0:02:37]}  Be6 {[%clk 0:02:41]} 11. Qd2 {[%clk 0:02:35]}  Rc8 {[%clk 0:02:28]} 12. O-O {[%clk 0:02:30]}  O-O {[%clk 0:02:19]} 13. Rad1 {[%clk 0:02:20]}  Qb6 {[%clk 0:02:18]} 14. b3 {[%clk 0:02:12]}  Rfd8 {[%clk 0:02:14]} 15. Kh1 {[%clk 0:02:06]}  Qa5 {[%clk 0:02:07]} 16. f4 {[%clk 0:02:03]}  exf4 {[%clk 0:01:50]} 17. gxf4 {[%clk 0:02:00]}  d5 {[%clk 0:01:29]} 18. Nxd5 {[%clk 0:01:54]}  Nxd5 {[%clk 0:01:09]} 19. Qxa5 {[%clk 0:01:50]}  Nxa5 {[%clk 0:01:09]} 20. exd5 {[%clk 0:01:43]}  Bxg5 {[%clk 0:01:05]} 21. fxg5 {[%clk 0:01:41]}  Bd7 {[%clk 0:01:05]} 22. c4 {[%clk 0:01:38]}  b5 {[%clk 0:01:04]} 23. Nd4 {[%clk 0:01:28]}  bxc4 {[%clk 0:01:02]} 24. bxc4 {[%clk 0:01:24]}  Rxc4 {[%clk 0:01:02]} 25. Nc6 {[%clk 0:01:19]}  Bxc6 {[%clk 0:00:58]} 26. dxc6 {[%clk 0:01:19]}  Rxd1 {[%clk 0:00:59]} 27. Rxd1 {[%clk 0:01:15]}  Nxc6 {[%clk 0:01:00]} 28. Rd6 {[%clk 0:01:02]}  Nb4 {[%clk 0:00:58]} 29. a3 {[%clk 0:00:59]}  Nc2 {[%clk 0:00:58]} 30. Rxa6 {[%clk 0:00:56]}  Ne3 {[%clk 0:00:59]} 31. Bc6 {[%clk 0:00:49]}  g6 {[%clk 0:00:56]} 32. a4 {[%clk 0:00:47]}  Nf5 {[%clk 0:00:53]} 33. Ra8+ {[%clk 0:00:45]}  Kg7 {[%clk 0:00:52]} 34. Bd7 {[%clk 0:00:42]}  Rc1+ {[%clk 0:00:50]} 35. Kg2 {[%clk 0:00:40]}  Rc2+ {[%clk 0:00:51]} 36. Kf3 {[%clk 0:00:38]}  Nd4+ {[%clk 0:00:50]} 37. Ke4 {[%clk 0:00:33]}  Nb3 {[%clk 0:00:50]} 38. Kf3 {[%clk 0:00:26]}  Rc3+ {[%clk 0:00:49]} 39. Ke4 {[%clk 0:00:19]}  Nc5+ {[%clk 0:00:50]} 40. Kd4 {[%clk 0:00:15]}  Rc1 {[%clk 0:00:50]} 41. Bb5 {[%clk 0:00:13]}  Nb3+ {[%clk 0:00:49]} 42. Kd5 {[%clk 0:00:11]}  Rc3 {[%clk 0:00:45]} 43. a5 {[%clk 0:00:09]}  Rc5+ {[%clk 0:00:44]} 44. Kd6 {[%clk 0:00:07]}  Rxb5 {[%clk 0:00:45]} 45. a6 {[%clk 0:00:07]}  Ra5 {[%clk 0:00:40]} 46. a7 {[%clk 0:00:06]}  Ra1 {[%clk 0:00:38]} 47. Kc6 {[%clk 0:00:04]}  Nd4+ {[%clk 0:00:38]} 48. Kb7 {[%clk 0:00:02]}  Ne6 {[%clk 0:00:38]} 0-1


[Site "https://www.chess.com"]